Cogmind - Beta 12 --- EXPLORER MODE // 2023.03.26 @ 05:29:23 Player: Rainynight Result: Destroyed by S-27 Virus with Autogun Performance ------------- Evolutions (5) 2500 Regions Visited (11) 2200 Robots Destroyed (0) 0 Value Destroyed (0) 0 Prototype IDs (2) 40 Alien Tech Used (0) 0 Bonus (39) 39 TOTAL SCORE: 4779 Bonus ------- Devolution -13500 Fragile Parts 1000 No Salvage 1000 Pure Core 2000 Scavenger 4000 Simple Hacker 2202 Trapped 750 Pacifist 1787 Entered DSFs 500 Aligned with FarCom 300 Cogmind --------- Core Integrity 0/800 Matter 300/300 Energy 100/100 System Corruption 2% Temperature Cool (0) Movement Core (50) Location -5/Factory Parts ------- > --- POWER (2) -------- (None) > --- PROPULSION (2) --- (None) > --- UTILITY (5) ------ (None) > --- WEAPON (7) ------- (None) > --- INVENTORY (0) ---- (None) Peak State ------------ None Favorites ----------- Power None Propulsion None Utility None Weapon None Build | -11 -10 -10 -10 -9 -8 -7 -6 -6 -5 -5 -5 ------- Run | Jun Mat Min Exi Min Mat Fac Fac DSF Fac Was Fac Slots Evolved -4 | . 1 . . . -2 -1 -1 . -1 . . Power . | . . . . . . . . . . . . Propulsion -3 | . . . . . -1 . -1 . -1 . . Utility -2 | . . . . . -1 -1 . . . . . Weapon 1 | . 1 . . . . . . . . . . Parts Attached . | . . . . . . . . . . . . Power . | . . . . . . . . . . . . Engine . | . . . . . . . . . . . . Core . | . . . . . . . . . . . . Reactor . | . . . . . . . . . . . . Propulsion . | . . . . . . . . . . . . Treads . | . . . . . . . . . . . . Leg . | . . . . . . . . . . . . Wheel . | . . . . . . . . . . . . Hover . | . . . . . . . . . . . . Flight . | . . . . . . . . . . . . Utility . | . . . . . . . . . . . . Device . | . . . . . . . . . . . . Storage . | . . . . . . . . . . . . Processor . | . . . . . . . . . . . . Hackware . | . . . . . . . . . . . . Protection . | . . . . . . . . . . . . Artifact . | . . . . . . . . . . . . Weapon . | . . . . . . . . . . . . Energy Gun . | . . . . . . . . . . . . Energy Cannon . | . . . . . . . . . . . . Ballistic Gun . | . . . . . . . . . . . . Ballistic Cannon . | . . . . . . . . . . . . Launcher . | . . . . . . . . . . . . Special Weapon . | . . . . . . . . . . . . Impact Weapon . | . . . . . . . . . . . . Slashing Weapon . | . . . . . . . . . . . . Piercing Weapon . | . . . . . . . . . . . . Special Melee Weapon . | . . . . . . . . . . . . Unidentified Prototypes . | . . . . . . . . . . . . Parts Lost . | . . . . . . . . . . . . Power . | . . . . . . . . . . . . Propulsion . | . . . . . . . . . . . . Utility . | . . . . . . . . . . . . Weapon . | . . . . . . . . . . . . Highest Loss Streak . | . . . . . . . . . . . . To Critical Strikes . | . . . . . . . . . . . . Average Slot Usage (%) . | . . . . . . . . . . . . Naked Turns 959 | . 47 159 80 121 78 72 22 61 84 36 199 Heaviest Build . | . . . . . . . . . . . . Greatest Support 3 | 3 3 3 3 3 3 3 3 3 3 3 3 Greatest Overweight (x) . | . . . . . . . . . . . . Average Overweight (x) . | . . . . . . . . . . . . Largest Inventory Capacity . | . . . . . . . . . . . . Average Capacity . | . . . . . . . . . . . . Most Carried . | . . . . . . . . . . . . Average Carried . | . . . . . . . . . . . . Final Capacity . | . . . . . . . . . . . . Final Carried . | . . . . . . . . . . . . Class Distribution -------------------- 100% | Hacker-Mutant Dominant Class ---------------- Hacker-Mutant | -10/Materials Hacker-Mutant | -10/Mines Hacker-Mutant | -10/Exiles Hacker-Mutant | -9/Mines Hacker-Mutant | -8/Materials Hacker-Mutant | -7/Factory Hacker-Mutant | -6/Factory Hacker-Mutant | -6/DSF Hacker-Mutant | -5/Factory Hacker-Mutant | -5/Waste Hacker-Mutant | -5/Factory Resources | -11 -10 -10 -10 -9 -8 -7 -6 -6 -5 -5 -5 ----------- Run | Jun Mat Min Exi Min Mat Fac Fac DSF Fac Was Fac Matter Collected 199 | 51 . 84 . 16 . . . . . 48 . Remotely . | . . . . . . . . . . . . Salvage Created . | . . . . . . . . . . . . Parts . | . . . . . . . . . . . . Haulers Intercepted . | . . . . . . . . . . . . Recyclers Shooed . | . . . . . . . . . . . . Parts Field Recycled . | . . . . . . . . . . . . Retrieved Matter . | . . . . . . . . . . . . Parts Self-Destructed . | . . . . . . . . . . . . Prevented . | . . . . . . . . . . . . Kills | -11 -10 -10 -10 -9 -8 -7 -6 -6 -5 -5 -5 ------- Run | Jun Mat Min Exi Min Mat Fac Fac DSF Fac Was Fac Combat Hostiles Destroyed . | . . . . . . . . . . . . Classes Destroyed . | . . . . . . . . . . . . Best Kill Streak . | . . . . . . . . . . . . Combat Bots Only . | . . . . . . . . . . . . Max Kills in Single Turn . | . . . . . . . . . . . . Gunslinging . | . . . . . . . . . . . . Exploded . | . . . . . . . . . . . . Melee . | . . . . . . . . . . . . Uniques/NPCs Destroyed . | . . . . . . . . . . . . Combat | -11 -10 -10 -10 -9 -8 -7 -6 -6 -5 -5 -5 -------- Run | Jun Mat Min Exi Min Mat Fac Fac DSF Fac Was Fac Damage Taken 1475 | . 83 93 . . 274 57 . 168 . . 800 Core 1475 | . 83 93 . . 274 57 . 168 . . 800 Absorbed by Shields 43 | . . . . . . . . 10 . . 33 Core Remaining (%) 82 | 100 . . . 78 65 92 . 79 . . . Volleys Fired . | . . . . . . . . . . . . Largest . | . . . . . . . . . . . . Hottest . | . . . . . . . . . . . . Shots Fired . | . . . . . . . . . . . . Gun . | . . . . . . . . . . . . Cannon . | . . . . . . . . . . . . Launcher . | . . . . . . . . . . . . Special . | . . . . . . . . . . . . Kinetic . | . . . . . . . . . . . . Thermal . | . . . . . . . . . . . . Explosive . | . . . . . . . . . . . . Electromagnetic . | . . . . . . . . . . . . Robot Hit Streak . | . . . . . . . . . . . . Robot Miss Streak . | . . . . . . . . . . . . Penetration Max . | . . . . . . . . . . . . Secondary Targets . | . . . . . . . . . . . . Shots Hit Robots . | . . . . . . . . . . . . Core Hits 2 | . . . . . . . . . . . 2 Critical Kills . | . . . . . . . . . . . . Critical Parts Destroyed . | . . . . . . . . . . . . Critical Strikes . | . . . . . . . . . . . . Melee Attacks . | . . . . . . . . . . . . Impact . | . . . . . . . . . . . . Slashing . | . . . . . . . . . . . . Piercing . | . . . . . . . . . . . . Sneak Attacks . | . . . . . . . . . . . . Combat Hostiles . | . . . . . . . . . . . . Follow-up Attacks . | . . . . . . . . . . . . Damage Inflicted 75 | . . 19 . . . . . . . . 56 Guns . | . . . . . . . . . . . . Cannons . | . . . . . . . . . . . . Explosions . | . . . . . . . . . . . . Melee . | . . . . . . . . . . . . Ramming 75 | . . 19 . . . . . . . . 56 Kinetic . | . . . . . . . . . . . . Thermal . | . . . . . . . . . . . . Explosive . | . . . . . . . . . . . . Electromagnetic . | . . . . . . . . . . . . Impact . | . . . . . . . . . . . . Slashing . | . . . . . . . . . . . . Piercing . | . . . . . . . . . . . . Highest Corruption 2 | . . 2 2 2 . . . . . . 2 Average Corruption 1 | . . 2 2 2 . . . . . . 1 Corruption Purged . | . . . . . . . . . . . . Corruption Blocked . | . . . . . . . . . . . . Effects 4 | . . 1 1 2 . . . . . . . Matter Fused 1 | . . . 1 . . . . . . . . Data Loss (minor) 3 | . . 1 . 2 . . . . . . . Overload Shots . | . . . . . . . . . . . . Overflow Damage . | . . . . . . . . . . . . Projectiles . | . . . . . . . . . . . . Explosions . | . . . . . . . . . . . . Melee . | . . . . . . . . . . . . Knockbacks . | . . . . . . . . . . . . Impact . | . . . . . . . . . . . . Kinetic . | . . . . . . . . . . . . Secondary . | . . . . . . . . . . . . Self-Inflicted Damage 34 | . . 9 . . . . . . . . 25 Shots . | . . . . . . . . . . . . Rammed 13 | . . 3 . . . . . . . . 10 Targets Rammed 13 | . . 3 . . . . . . . . 10 Kicked . | . . . . . . . . . . . . Crushed . | . . . . . . . . . . . . Highest Temperature 7 | . . 7 . . 7 . . . . . . Average Temperature 7 | . . 7 . . 7 . . . . . . Received Heat Transfer 309 | . 24 48 . . 162 18 . . . . 57 Siege Activations . | . . . . . . . . . . . . Robots Corrupted . | . . . . . . . . . . . . Combat Hostiles . | . . . . . . . . . . . . Parts Fried . | . . . . . . . . . . . . Impact Corruptions . | . . . . . . . . . . . . Robots Melted . | . . . . . . . . . . . . Combat Hostiles . | . . . . . . . . . . . . Parts Melted . | . . . . . . . . . . . . Heat Transferred . | . . . . . . . . . . . . Parts Sabotaged . | . . . . . . . . . . . . Parts Stolen . | . . . . . . . . . . . . Parts Stripped . | . . . . . . . . . . . . Power Chain Reactions . | . . . . . . . . . . . . Missiles Intercepted . | . . . . . . . . . . . . Alert | -11 -10 -10 -10 -9 -8 -7 -6 -6 -5 -5 -5 ------- Run | Jun Mat Min Exi Min Mat Fac Fac DSF Fac Was Fac Peak Influence 165 | . 15 89 . . 75 24 8 33 12 2 165 Initial 24 | . . 4 . . . 24 8 3 12 2 . Average 24 | . 4 35 . . 39 24 8 10 12 2 44 Maximum Alert Level . | . . . . . . . . . . . . Low Security (%) 100 | 100 100 100 . 100 100 100 100 100 100 100 100 Level 1 . | . . . . . . . . . . . . Level 2 . | . . . . . . . . . . . . Level 3 . | . . . . . . . . . . . . Level 4 . | . . . . . . . . . . . . Level 5 . | . . . . . . . . . . . . High Security . | . . . . . . . . . . . . Max Security . | . . . . . . . . . . . . Squads Dispatched 7 | . . 1 . . . . . 1 1 . 4 Investigation 3 | . . 1 . . . . . . 1 . 1 Extermination . | . . . . . . . . . . . . Reinforcement 4 | . . . . . . . . 1 . . 3 Assault . | . . . . . . . . . . . . Garrison . | . . . . . . . . . . . . Intercept . | . . . . . . . . . . . . Searches Triggered . | . . . . . . . . . . . . Construction Impeded . | . . . . . . . . . . . . Haulers Reinforced 2 | . . . . . . . . . . . 2 Active Scanning Responses . | . . . . . . . . . . . . Cargo Convoy Interrupts . | . . . . . . . . . . . . Stealth | -11 -10 -10 -10 -9 -8 -7 -6 -6 -5 -5 -5 --------- Run | Jun Mat Min Exi Min Mat Fac Fac DSF Fac Was Fac Distress Signals 3 | . 1 . . . 1 . . . . . 1 Communications Jammed . | . . . . . . . . . . . . Distress Signals . | . . . . . . . . . . . . Times Spotted 61 | . 5 18 . 2 11 1 . 3 . . 21 Peak Tracking Total 12 | . 5 10 . 2 9 1 . 2 . . 12 Tactical Retreats 7 | . . 2 . . 1 . . 1 . . 3 Traps | -11 -10 -10 -10 -9 -8 -7 -6 -6 -5 -5 -5 ------- Run | Jun Mat Min Exi Min Mat Fac Fac DSF Fac Was Fac Traps Triggered 15 | . 4 . . . . 2 . 2 2 . 5 Indirectly . | . . . . . . . . . . . . Trap Hack Attempts . | . . . . . . . . . . . . Triggered . | . . . . . . . . . . . . Disarmed . | . . . . . . . . . . . . Reprogrammed . | . . . . . . . . . . . . Reused . | . . . . . . . . . . . . Traps Extracted . | . . . . . . . . . . . . Installed . | . . . . . . . . . . . . Triggered . | . . . . . . . . . . . . Machines | -11 -10 -10 -10 -9 -8 -7 -6 -6 -5 -5 -5 ---------- Run | Jun Mat Min Exi Min Mat Fac Fac DSF Fac Was Fac Machines Disabled . | . . . . . . . . . . . . Max in Single Turn . | . . . . . . . . . . . . Machines Repaired . | . . . . . . . . . . . . Machines Sabotaged . | . . . . . . . . . . . . Overloaded Fab Kills . | . . . . . . . . . . . . Hacking | -11 -10 -10 -10 -9 -8 -7 -6 -6 -5 -5 -5 --------- Run | Jun Mat Min Exi Min Mat Fac Fac DSF Fac Was Fac Machines Accessed 7 | . . 1 . . . . 1 . 2 . 3 Terminals 6 | . . . . . . . 1 . 2 . 3 Fabricators . | . . . . . . . . . . . . Repair Stations . | . . . . . . . . . . . . Recycling Units . | . . . . . . . . . . . . Scanalyzers . | . . . . . . . . . . . . Garrison Access . | . . . . . . . . . . . . Total Hacks 9 | . . 1 . . . . 1 . 3 . 4 Successful 6 | . . 1 . . . . 1 . 1 . 3 Failed 3 | . . . . . . . . . 2 . 1 Catastrophic 2 | . . . . . . . . . 2 . . Database Lockouts . | . . . . . . . . . . . . Manual . | . . . . . . . . . . . . Terminals 8 | . . . . . . . 1 . 3 . 4 Fabricators . | . . . . . . . . . . . . Repair Stations . | . . . . . . . . . . . . Recycling Units . | . . . . . . . . . . . . Scanalyzers . | . . . . . . . . . . . . Garrison Access . | . . . . . . . . . . . . Terminal Hacks 6 | . . 1 . . . . 1 . 1 . 3 Prototype ID Bank 1 | . . . . . . . . . . . 1 Open Door 1 | . . 1 . . . . . . . . . Open DSF 2 | . . . . . . . 1 . 1 . . Emergency Access Points 1 | . . . . . . . . . . . 1 Zone Layout 1 | . . . . . . . . . . . 1 Fabricator Hacks . | . . . . . . . . . . . . Repair Station Hacks . | . . . . . . . . . . . . Recycling Unit Hacks . | . . . . . . . . . . . . Scanalyzer . | . . . . . . . . . . . . Garrison Access Hacks . | . . . . . . . . . . . . Unauthorized Hacks . | . . . . . . . . . . . . Terminals . | . . . . . . . . . . . . Fabricators . | . . . . . . . . . . . . Repair Stations . | . . . . . . . . . . . . Recycling Units . | . . . . . . . . . . . . Scanalyzers . | . . . . . . . . . . . . Garrison Access . | . . . . . . . . . . . . Data Cores Recovered . | . . . . . . . . . . . . Used . | . . . . . . . . . . . . Hacking Detections 1 | . . . . . . . . . 1 . . Full Trace Events 1 | . . . . . . . . . 1 . . Feedback Events . | . . . . . . . . . . . . Feedback Blocked . | . . . . . . . . . . . . Robot Schematics Acquired . | . . . . . . . . . . . . Robots Built . | . . . . . . . . . . . . Authchips . | . . . . . . . . . . . . Time . | . . . . . . . . . . . . Total Robot Build Rating . | . . . . . . . . . . . . Part Schematics Acquired . | . . . . . . . . . . . . Parts Built . | . . . . . . . . . . . . Authchips . | . . . . . . . . . . . . Time . | . . . . . . . . . . . . Total Part Build Rating . | . . . . . . . . . . . . Parts Repaired . | . . . . . . . . . . . . Time . | . . . . . . . . . . . . Parts Recycled . | . . . . . . . . . . . . Recycled Matter . | . . . . . . . . . . . . Retrieved Matter . | . . . . . . . . . . . . Retrieved Components . | . . . . . . . . . . . . Parts Scanalyzed . | . . . . . . . . . . . . Part Schematics Acquired . | . . . . . . . . . . . . Parts Damaged . | . . . . . . . . . . . . Bothacking | -11 -10 -10 -10 -9 -8 -7 -6 -6 -5 -5 -5 ------------ Run | Jun Mat Min Exi Min Mat Fac Fac DSF Fac Was Fac Used RIF Installer . | . . . . . . . . . . . . Robots Hacked . | . . . . . . . . . . . . Non-combat . | . . . . . . . . . . . . Combat . | . . . . . . . . . . . . Robot Hacks Applied . | . . . . . . . . . . . . Relay Couplers Released . | . . . . . . . . . . . . Fabnet Peak Effective % . | . . . . . . . . . . . . Robots Rewired . | . . . . . . . . . . . . Allies Hacked . | . . . . . . . . . . . . Hacks Repelled . | . . . . . . . . . . . . Allies | -11 -10 -10 -10 -9 -8 -7 -6 -6 -5 -5 -5 -------- Run | Jun Mat Min Exi Min Mat Fac Fac DSF Fac Was Fac Total Allies 3 | . . 3 . . . . . . . . . Largest Group 3 | . . 3 . . . . . . . . . Highest-Rated Group 40 | . . 40 . . . . . . . . . Highest-Rated Ally 16 | . . 16 . . . . . . . . . Total Orders . | . . . . . . . . . . . . Ally Attacks 13 | . . 13 . . . . . . . . . Total Damage 130 | . . 130 . . . . . . . . . Kills 2 | . . 2 . . . . . . . . . Allies Corrupted . | . . . . . . . . . . . . Allies Melted . | . . . . . . . . . . . . Intel | -11 -10 -10 -10 -9 -8 -7 -6 -6 -5 -5 -5 ------- Run | Jun Mat Min Exi Min Mat Fac Fac DSF Fac Was Fac Robot Analysis Total . | . . . . . . . . . . . . Derelict Logs Recovered 1 | . . . . 1 . . . . . . . Drone Launches . | . . . . . . . . . . . . Drone Recoveries . | . . . . . . . . . . . . Exploration | -11 -10 -10 -10 -9 -8 -7 -6 -6 -5 -5 -5 ------------- Run | Jun Mat Min Exi Min Mat Fac Fac DSF Fac Was Fac Turns Passed 968 | 9 47 159 80 121 78 72 22 61 84 36 199 Spaces Moved 1731 | 18 94 303 159 242 156 113 44 64 137 72 329 Core 1731 | 18 94 303 159 242 156 113 44 64 137 72 329 Treads . | . . . . . . . . . . . . Legs . | . . . . . . . . . . . . Wheels . | . . . . . . . . . . . . Hover . | . . . . . . . . . . . . Flight . | . . . . . . . . . . . . Fastest Speed 50 | 50 50 50 50 50 50 50 50 50 50 50 50 Average Speed 50 | 50 50 50 50 50 50 50 50 50 50 50 50 Slowest Speed 50 | 50 50 50 50 50 50 50 50 50 50 50 50 Overloaded Moves . | . . . . . . . . . . . . Propulsion Burnouts . | . . . . . . . . . . . . Robots Hopped . | . . . . . . . . . . . . Cave-ins Triggered . | . . . . . . . . . . . . Exploration Rate (%) 33 | 3 25 83 37 56 23 6 3 84 5 68 13 Regions Visited 11 Branch Regions 3 Pre-discovered Areas 1 | . . . . 1 . . . . . . . Known Exits Taken 8 | 1 1 1 1 1 1 1 1 . . . . Unknown Exits Taken . | . . . . . . . . . . . . Scrap Searched 1 | . . . . 1 . . . . . . . Spaces Dug . | . . . . . . . . . . . . Terrain Destroyed . | . . . . . . . . . . . . Melee . | . . . . . . . . . . . . Projectile . | . . . . . . . . . . . . AOE . | . . . . . . . . . . . . Terrain Rammed . | . . . . . . . . . . . . Walls Destroyed . | . . . . . . . . . . . . Machines Disabled . | . . . . . . . . . . . . Actions | -11 -10 -10 -10 -9 -8 -7 -6 -6 -5 -5 -5 --------- Run | Jun Mat Min Exi Min Mat Fac Fac DSF Fac Was Fac Total 1821 | 17 93 309 158 241 155 127 43 92 152 71 363 Wait 4 | . . 4 . . . . . . . . . Move 1721 | 17 93 302 158 241 155 112 43 63 137 71 329 Hop . | . . . . . . . . . . . . Pick Up . | . . . . . . . . . . . . Fast Attach . | . . . . . . . . . . . . Attach . | . . . . . . . . . . . . Detach . | . . . . . . . . . . . . Swap . | . . . . . . . . . . . . Drop . | . . . . . . . . . . . . Fire . | . . . . . . . . . . . . Melee . | . . . . . . . . . . . . Ram 13 | . . 3 . . . . . . . . 10 Kick . | . . . . . . . . . . . . Crush . | . . . . . . . . . . . . Escape Stasis 83 | . . . . . . 15 . 29 15 . 24 Rewire . | . . . . . . . . . . . . Trap . | . . . . . . . . . . . . Miscellaneous . | . . . . . . . . . . . . Route ------- -11/Junkyard -10/Materials -10/Mines (discovered 3 exits: *Mat x2 / *Exi) -10/Exiles -9/Mines -8/Materials -7/Factory -6/Factory -6/DSF -5/Factory -5/Waste -5/Factory History --------- Turn | Location | Event 3 | -11/Junkyard | Identified exit to Materials 3 | -11/Junkyard | Discovered exit to Materials (range 15) 10 | -11/Junkyard | Entered Materials 10 | -10/Materials | Devolved, losing -1 slots: Weapon x1 53 | -10/Materials | Identified exit to Mines 53 | -10/Materials | Discovered exit to Mines (range 10) 57 | -10/Materials | Entered Mines 80 | -10/Mines | Met a Derelict bent on vengeance 110 | -10/Mines | Met a Derelict shopkeep closing up shop 118 | -10/Mines | Identified exit to Materials 118 | -10/Mines | Discovered exit to Materials (range 16) 148 | -10/Mines | Discovered exit to Materials (range 8) 149 | -10/Mines | Assembled infested the area 154 | -10/Mines | Assisted by a Guerilla fighting off Assembled 169 | -10/Mines | Assisted by bots powering up and referring to "LRC-V3" 213 | -10/Mines | Deemed a non-threat by the Exiles lab entrance 214 | -10/Mines | Identified exit to Exiles 214 | -10/Mines | Discovered exit to Exiles (range 5) 216 | -10/Mines | Entered Exiles 229 | -10/Exiles | Met 8R-AWN 237 | -10/Exiles | Met EX-HEX 251 | -10/Exiles | Met EX-BIN 258 | -10/Exiles | Aligned with FarCom system 258 | -10/Exiles | Given EX-Vault access code 290 | -10/Exiles | Identified exit to Mines 290 | -10/Exiles | Discovered exit to Mines (range 14) 296 | -10/Exiles | Entered Mines 305 | -9/Mines | Build established: Hacker-Mutant 386 | -9/Mines | Learned location of Storage (-9) 414 | -9/Mines | Identified exit to Materials 414 | -9/Mines | Discovered exit to Materials (range 6) 417 | -9/Mines | Entered Materials 417 | -8/Materials | Devolved, losing 2 slots: Propulsion x-1, Utility x-1 493 | -8/Materials | Identified exit to Factory 493 | -8/Materials | Discovered exit to Factory (range 4) 495 | -8/Materials | Entered Factory 495 | -7/Factory | Devolved, losing 1 slot: Utility x-1 563 | -7/Factory | Identified exit to Factory 563 | -7/Factory | Discovered exit to Factory (range 6) 567 | -7/Factory | Entered another Factory area 567 | -6/Factory | Devolved, losing 1 slot: Propulsion x-1 589 | -6/Factory | Identified exit to DSF 589 | -6/Factory | Entered DSF 630 | -6/DSF | Additional patrols routed to DSF 630 | -6/DSF | Identified exit to Factory 630 | -6/DSF | Discovered exit to Factory (range 14) 650 | -6/DSF | Entered Factory 650 | -5/Factory | Devolved, losing 1 slot: Propulsion x-1 734 | -5/Factory | Sucked down chute 734 | -5/Factory | Entered Waste 734 | -5/Waste | The area was eerily silent 763 | -5/Waste | Identified exit to Factory 763 | -5/Waste | Discovered exit to Factory (range 13) 770 | -5/Waste | Entered Factory 894 | -5/Factory | Core integrity fell below 50% 942 | -5/Factory | Core integrity fell below 20% 969 | -5/Factory | Destroyed by S-27 Virus with Autogun Last Messages --------------- 00946_ ALERT: Hostile activity reported, dispatching reinforcements to area. 00952_ Connecting with Terminal... >>Layout(Zone) Retrieving Zone 8E layout... Downloaded map data. 00952_ K-01 Serf destroyed. 00959_ T-07 Excavator destroyed. 00960_ Triggered Stasis Trap. 00960_ A bubble of rippling energy engulfs the area. 00960_ Field strength at 94. 00960_ Field strength at 88. 00961_ Field strength at 80. 00962_ Field strength at 71. 00963_ Field strength at 62. 00964_ Field strength at 51. 00965_ Field strength at 45. 00966_ Field strength at 33. 00967_ Field strength at 21. 00968_ Field strength at 12. Map ----- +----------------------------------------------------+ | ?????????????????????????????????????????????????? | | ?????????????????????????????????????????????????? | | ?????????????????????????????????????????????????? | | ?????????????????????????????????????????????????? | | ???????????????????????????????????????????????### | | ??????????????????????????????????????????????? | | ??????????????????????????????????????????????? "" | | ??????????????????????????????????????????????? "" | | ??????????????????????????????s??????????????? "" | | ??????????????????????????????h??????????????? "" | | ??????????????????????????????h??????????????? "" | | ??????????????????????????????????????????????? "" | | ??????????????????????????????????????????????? | | ??????????????????????????????????????????????#### | | ?????????????????????????????????????????????????? | | ?????????????????????????????????????????????????? | | ????????????????????# # """ ## #?????? | | ????????????????????########## """ #### ###?????? | | ?????????????????????????????# """ #??# #???????? | | ?????????????????????????????# #??# #???????? | | ?????????????????????????????#+######??# #???????? | | ???????????################??# #???????# #???????? | | ??????????? u #??#g#???????# #???##### | | ?????????? #??#g#######?# #???# | | ?????????? A #??# g #?# #???#%### | | ?????????? ^R @#??# #?# #???# #?? | | ?????????? ss#### ### #???# #?? | | ?????????? s pspgg% #???#%#?? | | ?????????? #################### #???#%#?? | | ??????????? ?????????????# # #???# #?? | | ?????????????????????????# / % #???# #?? | | ?????????????????????????# "T" # #####%# | | ?????????????????????????# """ # % / | | ?????????????????????????########### #### # | | ????????????????????????????# # ####/### | | ????????????????????????????# # ## ?? | | ????????????????????????????# """ + + """ ? | | ????????????????????????????# """ # ## """ | | ????????????????????????????# """ # ## """ | | ????????????????????????????# # ## ? | | ????????????????????????????###?#### ## ! ? | | ??????????????????????????????# #??# ######?? | | ??????????????????????????????# #??# ?? | | ??????????????????????????????# #??# ?? | | ??????????????????????????????# #??# ?? | | ????????????????????????????###?#### ^ ?? | | ????????????????????????????# # ?? | | ???????????????????????????????????? ??????? | | ?????????????????????????????????????????????????? | | ?????????????????????????????????????????????????? | +----------------------------------------------------+ Best States ------------- Heat Dissipation 20 Energy Generation 5 Energy Capacity 100 Matter Stores 300 Matter Capacity 300 Sight Range 16 Terrain Scan Density 10 Resistance: KI 35 Resistance: TH 35 Resistance: EX 35 Resistance: EM 35 Resistance: I 35 Resistance: S 35 Resistance: P 35 Evasion (%) 50 Offensive Hacking 20 Item Schematics ----------------- None Robot Schematics ------------------ None Fabricated ------------ Nothing Alien Tech Used ----------------- None Achievements -------------- None Challenges ------------ Devolution Fragile Parts No Salvage Pure Core Scavenger Simple Hacker Trapped Game ------ Seed InsulatedGyrokineticSource Manual? 0 Play Time 00:10:53 Cumulative 281.7 hours Start 2023.03.26 @ 05:20:40 End 2023.03.26 @ 05:29:23 Sessions 1 Manual Loads 0 Difficulty Explorer Special Mode None Game No. 274 Rogue 254 Adventurer 1 Explorer 19 Win Type - Total 16 Types 13/1/0/2/0/0/0/0/0 Lore% 74 Gallery% 80 Achievement% 72 Wizard Run 0 Options --------- ASCII 1 Keyboard 1 Movement Numpad Keybinds 1 Fullscreen 1 Font 18/X11 Map View 76x50 Tactical HUD 1 Map Filters NONE Filters NONE Steam 1 RUN: 22918424-640c-4567-854e-7772b0cf1cca